bitfinex-derivatives/quotes_ETHF0:USTF0_20250807
["timestamp","ask_amount","ask_price","bid_price","bid_amount"]
[1754580560923,0.2999,3828.6,3828.5,1.6709]
[1754580561119,0.4844,3828.6,3828.5,1.6709]
[1754580561422,0.6603,3828.0,3827.9,1.60566]
[1754580561623,1.682,3828.0,3827.9,0.277]
[1754580561827,0.682,3828.0,3827.9,0.277]
[1754580562025,1.0663,3828.0,3827.9,0.277]
[1754580562621,1.0663,3828.0,3827.6,0.4164]
[1754580562622,0.52236,3827.9,3827.6,0.4164]
[1754580562821,1.30575,3828.4,3827.6,0.4164]
[1754580562822,0.3843,3827.7,3827.6,1.6057]
[1754580563128,0.9807,3827.7,3827.6,2.1933]
[1754580563818,0.9807,3827.7,3827.6,1.4094]
[1754580564023,0.9807,3827.7,3827.5,0.52241]
[1754580564319,0.9807,3827.7,3827.6,1.6709]
[1754580564523,0.26471438,3828.4,3828.3,0.93871]
[1754580564724,1.24541438,3828.8,3828.7,1.0833]
[1754580564924,1.24541438,3828.8,3828.7,0.887]
[1754580565129,1.24541438,3828.8,3828.7,0.277]
[1754580565427,0.9807,3828.8,3828.7,0.277]
[1754580565628,0.9807,3828.8,3828.7,0.6934]
[1754580565831,0.9807,3828.8,3828.7,1.0833]
[1754580566528,0.9807,3828.8,3828.7,1.6709]
[1754580566923,0.4844,3828.8,3828.7,1.6709]
[1754580567430,0.9807,3828.8,3828.7,1.6709]
[1754580567825,0.6842,3828.8,3828.7,1.6709]
[1754580568430,0.9807,3828.8,3828.7,1.6709]
[1754580570725,0.9807,3828.8,3828.7,0.6934]
[1754580570927,0.9807,3828.8,3828.7,1.6709]
[1754580573230,0.4844,3828.8,3828.7,1.6709]
[1754580573534,0.9807,3828.8,3828.7,1.0833]
[1754580573736,0.9807,3828.8,3828.7,1.60555]
[1754580574036,0.9807,3828.8,3828.7,1.0833]
[1754580574434,0.9807,3828.8,3828.7,1.6709]
[1754580575026,1.30558,3828.9,3828.4,0.7076]
[1754580575233,0.3843,3828.2,3828.1,1.60564]
[1754580575532,0.9807,3827.9,3827.8,1.0833]
[1754580575736,0.9807,3827.9,3827.8,1.6709]
[1754580577738,0.9807,3827.9,3827.8,1.0833]
[1754580577939,0.9807,3827.9,3827.8,0.277]
[1754580578233,0.9807,3827.6,3827.5,0.6669]
[1754580578435,0.9807,3827.6,3827.5,1.0833]
[1754580579036,0.9807,3827.6,3827.5,1.6709]
[1754580580536,0.4844,3827.6,3827.5,1.6709]
[1754580580737,0.3843,3827.9,3827.8,1.2003]
[1754580580943,0.3843,3827.9,3827.8,1.6709]
[1754580581234,0.6808,3827.9,3827.8,1.6709]
[1754580581439,0.9807,3827.9,3827.8,1.6709]
[1754580581942,0.4844,3827.9,3827.8,1.6709]
[1754580582240,0.9807,3827.9,3827.8,1.6709]
[1754580582636,0.9807,3827.9,3827.8,1.0833]
[1754580582938,0.9807,3827.9,3827.8,1.3657]
[1754580583237,0.9807,3827.9,3827.8,1.6443]
[1754580583439,1.48992,3828.3,3828.2,0.6569]
[1754580583741,1.76667118,3828.3,3828.2,1.0979]
[1754580583940,0.9676,3828.3,3828.2,1.0979]
[1754580584143,0.9676,3828.3,3828.2,1.6589]
[1754580587053,1.19849,3828.5,3828.4,0.6569]
[1754580587344,1.48989,3828.5,3828.4,1.6589]
[1754580587736,0.9676,3828.5,3828.4,1.6589]
[1754580587933,0.6762,3828.5,3828.4,1.6589]
[1754580588443,0.9676,3828.5,3828.4,1.6589]
[1754580588742,0.27664496,3828.7,3828.0,1.30586]
[1754580588743,0.9676,3828.2,3828.1,0.2803]
[1754580588943,0.9676,3828.2,3828.1,0.9104]
[1754580589246,0.9676,3828.2,3828.1,1.6589]
[1754580589739,0.3838,3828.2,3828.1,1.6589]
[1754580590141,0.9676,3828.2,3828.1,1.6589]
[1754580590350,0.9676,3828.2,3828.1,0.2803]
[1754580590942,0.9676,3828.2,3828.1,1.0979]
[1754580591248,0.9676,3828.2,3828.1,0.2803]
[1754580591746,0.9676,3828.2,3828.1,0.9104]
[1754580592446,1.48998,3827.8,3827.7,0.4694]
[1754580592648,0.71121,3827.6,3827.5,0.4694]
[1754580592852,0.90621,3827.6,3827.5,0.4694]
[1754580593145,0.9676,3827.6,3827.5,0.4694]
[1754580593345,0.9676,3827.6,3827.5,1.6589]
[1754580593738,0.3838,3827.3,3827.2,1.46005]
[1754580594050,0.9676,3827.3,3827.2,0.6569]
[1754580594351,0.9676,3827.3,3827.2,1.0979]
[1754580594650,0.9676,3827.3,3827.2,1.6589]
[1754580595142,0.97615505,3827.9,3827.6,1.002]
[1754580595344,0.7788,3828.0,3827.9,1.4698]
[1754580595545,0.9676,3828.0,3827.9,1.6589]
[1754580596244,0.1888,3828.0,3827.9,1.6589]
[1754580597246,1.49844505,3828.5,3828.4,0.6569]
[1754580597247,0.73177721,3828.5,3828.4,0.6569]
[1754580597442,0.25157721,3828.5,3828.4,2.1812]
[1754580597643,0.4802,3828.8,3828.7,2.18116]
[1754580597854,0.6752,3828.8,3828.7,2.18116]
[1754580598245,0.3838,3828.8,3828.7,2.18116]
[1754580598446,1.6762,3829.0,3828.9,2.18113]
[1754580598746,1.9676,3829.0,3828.9,2.18113]
[1754580598944,1.9676,3829.0,3828.9,1.6589]
[1754580599549,1.0,3829.0,3828.9,1.6589]
[1754580599748,0.5436,3829.0,3828.9,1.6589]
[1754580600843,1.5112,3829.0,3828.9,1.6589]
[1754580601150,2.1227,3829.0,3828.9,1.6589]
[1754580601547,1.7866,3829.0,3828.9,1.6589]
[1754580601749,1.5112,3829.0,3828.9,1.6589]
[1754580602250,0.5436,3829.0,3828.9,1.6589]
[1754580602449,0.0872,3829.0,3828.9,1.6589]
[1754580602847,1.243,3830.0,3829.9,0.3766]
[1754580603046,1.6944,3830.0,3829.9,1.6589]
[1754580603257,1.6944,3830.4,3830.3,1.6589]
[1754580603441,0.5838,3831.3,3831.2,0.9393]
[1754580603644,0.1888,3830.9,3830.8,0.4677]
[1754580603944,0.4812,3830.9,3830.8,1.6589]
[1754580604554,0.1888,3830.5,3830.4,1.17892]
[1754580604748,0.3838,3830.8,3830.7,1.17888]
[1754580604943,0.3838,3830.8,3830.7,2.18088]
[1754580605148,0.1888,3830.8,3830.7,2.18088]
[1754580605351,0.6762,3831.3,3831.2,0.9355]
[1754580605553,0.6762,3831.3,3831.2,1.6589]
[1754580605754,1.6944,3831.3,3831.2,1.6589]
[1754580606050,0.5838,3831.2,3831.0,0.2824]
[1754580606253,1.6944,3831.2,3831.1,0.6569]
[1754580606444,1.6944,3831.2,3831.1,1.0979]
[1754580606647,1.0352,3831.6,3830.9,0.441]
[1754580606852,0.1888,3831.1,3831.0,0.2824]
[1754580607049,0.7566,3831.1,3831.0,1.6589]
[1754580607249,1.243,3831.1,3831.0,1.6589]
[1754580607450,1.6944,3831.1,3831.0,1.6589]
[1754580609364,1.6944,3831.1,3831.0,1.3803]
[1754580611259,1.6944,3831.1,3831.0,1.6589]
[1754580612449,0.52194,3831.0,3830.6,0.96299]
[1754580612756,1.6944,3830.7,3830.6,2.18089]
[1754580612958,1.6944,3830.7,3830.6,1.6589]
[1754580613158,1.6944,3830.7,3830.3,0.93323]
[1754580613360,1.6936,3830.6,3830.5,1.9116]
[1754580613557,1.6936,3830.6,3830.5,1.6916]
[1754580614361,0.1914,3830.6,3830.5,1.6916]
[1754580614563,1.129,3830.9,3830.8,1.3896]
[1754580614856,0.4407,3831.7,3830.8,1.3896]
[1754580615059,1.1991,3831.2,3830.9,1.0117]
[1754580615359,1.6936,3831.5,3831.4,0.99939]
[1754580615560,1.6936,3831.5,3831.4,2.21349]
[1754580616155,1.6936,3831.5,3831.4,1.6916]
[1754580616356,1.6936,3831.5,3831.4,1.3896]
[1754580616556,19.137,3832.0,3830.3,1.30508]
[1754580616557,1.6936,3831.0,3830.9,1.6916]
[1754580616857,0.9702,3831.3,3831.2,0.6799]
[1754580617061,1.2529,3831.3,3831.2,1.6916]
[1754580617361,0.6671,3831.3,3831.2,2.21352]
[1754580617562,0.4733,3831.3,3831.2,2.21352]
[1754580617863,0.3852,3831.3,3831.2,2.21352]
[1754580618062,0.6671,3831.3,3831.2,2.21352]
[1754580618457,0.6671,3831.5,3831.4,2.21349]
[1754580618663,0.9702,3831.5,3831.4,2.21349]
[1754580618853,1.6936,3831.5,3831.4,2.21349]
[1754580619059,1.6936,3831.5,3831.4,1.3896]
[1754580619364,1.6936,3831.5,3831.4,1.0911]
[1754580619665,0.6883,3831.1,3831.0,1.22674]
[1754580619963,1.6936,3830.9,3830.8,0.52196]
[1754580620153,1.6936,3830.9,3830.8,0.99946]
[1754580620353,1.6936,3830.9,3830.8,1.91156]
[1754580620757,1.6936,3830.9,3830.8,2.21356]
[1754580621166,1.6936,3830.9,3830.8,1.0911]
[1754580621361,1.6936,3830.6,3830.5,1.9116]
[1754580621564,1.24462,3830.5,3829.8,0.7097]
[1754580621855,1.6936,3830.3,3830.2,2.21365]
[1754580622955,1.6936,3830.3,3830.2,0.4775]
[1754580623158,0.6883,3830.3,3830.1,0.52206]
[1754580623362,1.6936,3830.2,3830.1,0.52206]
[1754580623562,1.6936,3830.2,3830.1,0.99956]
[1754580623859,1.0053,3830.1,3829.4,1.30541]
[1754580624166,1.6936,3829.5,3829.4,1.91176]
[1754580624464,1.6936,3829.5,3829.4,2.21376]
[1754580624666,1.6936,3829.5,3829.4,0.52216]
[1754580624960,0.5646,3830.3,3830.0,0.52207]
[1754580625162,1.6936,3830.1,3829.9,0.52208]
[1754580625357,1.6936,3829.9,3829.8,0.5221]
[1754580625562,1.6936,3829.9,3829.8,1.6132]
[1754580625766,0.6883,3829.7,3829.6,0.52212]
[1754580626065,1.6936,3829.7,3829.6,1.3896]
[1754580626265,1.6936,3829.4,3829.3,0.7945]
[1754580626566,1.6936,3829.3,3829.2,0.8887]
[1754580626763,1.6936,3829.3,3829.2,1.3896]
[1754580626967,1.0615,3829.2,3829.1,0.496]
[1754580627168,1.6936,3829.2,3829.1,0.6799]
[1754580627862,1.6936,3829.2,3829.1,0.2936]
[1754580628163,1.2529,3829.2,3829.1,2.2138]
[1754580628368,3.42036095,3830.6,3829.6,0.52213]
[1754580628668,3.42036095,3830.6,3828.9,1.30557]
[1754580628669,1.6936,3830.2,3830.1,1.3896]
[1754580628863,1.0053,3830.1,3829.8,0.7097]
[1754580629166,1.6936,3829.9,3829.8,0.1839]
[1754580629368,0.6883,3829.9,3829.7,0.52211]
[1754580629563,1.2529,3829.8,3829.7,1.91521]
[1754580629867,0.9702,3830.2,3830.1,2.21366]
[1754580630058,1.6936,3830.5,3830.4,1.20192]
[1754580630261,1.6936,3830.5,3830.4,1.91162]
[1754580630756,1.6936,3830.5,3830.4,2.21362]
[1754580631267,1.2529,3830.5,3830.4,2.21362]
[1754580631764,0.91002593,3831.0,3830.9,1.91156]
[1754580632062,0.4407,3831.4,3831.2,0.52192]
[1754580632063,1.10382593,3831.3,3831.2,0.52192]
[1754580632368,1.38572593,3831.3,3831.2,2.21352]
[1754580632765,0.6671,3831.3,3831.2,2.21352]
[1754580632965,1.6936,3831.3,3831.2,0.4775]
[1754580633268,2.41222593,3831.3,3831.2,0.4775]
[1754580633564,1.6936,3831.3,3831.2,1.0911]
[1754580633766,1.6936,3831.3,3831.2,0.6799]
[1754580634268,1.6936,3831.3,3831.2,1.3896]
[1754580634469,1.6936,3831.3,3831.2,1.6916]
[1754580634868,1.6936,3831.3,3831.2,1.0911]
[1754580635066,1.6936,3831.3,3831.2,0.6799]
[1754580635368,1.6936,3831.3,3831.2,0.4775]
[1754580635963,20.51470502,3832.0,3830.5,1.91161]
[1754580635964,0.4969,3830.6,3830.5,1.91161]
[1754580636164,1.6936,3830.6,3830.5,1.61311]
[1754580636369,1.6936,3830.6,3830.5,1.91161]
[1754580636565,1.2529,3830.6,3830.5,1.61311]
[1754580636872,1.0053,3830.6,3830.3,0.52203]
[1754580637069,1.6936,3830.5,3830.4,0.52202]
[1754580637268,1.6936,3830.5,3830.4,1.91162]
[1754580637564,0.71862593,3831.3,3830.7,1.61308]
[1754580637565,1.6936,3830.8,3830.7,1.61308]
[1754580637874,1.6936,3830.8,3830.7,1.3896]
[1754580638169,1.6936,3830.8,3830.7,1.0911]
[1754580638470,1.6936,3830.8,3830.7,1.3896]
[1754580638664,1.6936,3830.8,3830.7,0.6799]
[1754580639372,1.6936,3830.8,3830.7,0.2936]
[1754580640563,0.71862593,3831.3,3830.7,0.2936]
[1754580640770,1.0053,3831.3,3830.6,0.7097]
[1754580641061,1.0053,3831.2,3830.6,1.0117]
[1754580641267,0.6883,3831.0,3830.9,0.6799]
[1754580641460,0.7764,3831.0,3830.9,2.21356]
[1754580641665,0.4733,3831.0,3830.9,2.21356]
[1754580641865,0.1914,3831.0,3830.9,2.21356]
[1754580642065,1.21025,3831.0,3830.8,0.52196]
[1754580642262,0.71862593,3831.5,3830.8,0.52196]
[1754580642263,1.6936,3830.9,3830.8,1.91156]
[1754580642569,1.6936,3831.4,3831.3,2.21349]
[1754580642871,0.9702,3831.4,3831.3,2.21349]
[1754580643372,0.6671,3831.4,3831.3,2.21349]
[1754580644370,1.6923,3831.4,3831.3,1.3896]
[1754580644967,1.6923,3831.4,3831.3,1.0911]
[1754580645161,1.6923,3831.4,3831.3,1.3953]
[1754580645361,2.2142,3831.4,3831.2,0.52191]
[1754580645568,1.7019,3831.2,3831.1,0.52192]
[1754580646067,1.7019,3831.1,3831.0,0.52194]
[1754580646659,1.7019,3831.1,3831.0,1.17484]
[1754580646881,1.7019,3831.1,3831.0,1.91944]
[1754580647374,0.9718,3831.1,3831.0,2.21484]
[1754580647672,0.3903,3831.1,3831.0,2.21484]
[1754580648566,0.1934,3831.1,3831.0,2.21484]
[1754580648769,1.7019,3831.1,3831.0,2.21484]
[1754580648968,1.2716,3831.1,3831.0,2.21484]
[1754580649370,0.6767,3831.1,3831.0,2.21484]
[1754580650471,0.9718,3831.1,3831.0,2.21484]
[1754580650669,1.7019,3831.1,3831.0,2.21484]
[1754580651472,1.7019,3831.1,3831.0,1.17484]
[1754580651679,1.7019,3831.1,3831.0,1.91944]
[1754580651977,0.7749,3831.1,3831.0,2.21484]
[1754580652275,1.0165,3832.6,3831.9,2.21472]
[1754580652777,0.5862,3832.6,3831.9,2.21472]
[1754580653567,0.2864,3832.9,3832.8,0.5217]
[1754580653773,0.9718,3832.9,3832.8,1.1746]
[1754580653978,1.7019,3832.9,3832.8,1.1746]
[1754580654281,1.7019,3832.9,3832.8,0.1842]
[1754580654968,0.6854,3832.6,3832.0,0.6427]
[1754580655177,0.492,3832.5,3832.4,0.52174]
[1754580655378,0.9718,3832.5,3832.4,0.70594]
[1754580655777,1.1157,3832.5,3832.1,0.6427]
[1754580656081,1.1157,3832.5,3831.8,0.1591]
[1754580656082,1.7019,3832.1,3832.0,0.706]
[1754580656474,1.7019,3832.1,3832.0,0.1842]
[1754580657081,1.7019,3832.1,3832.0,0.4884]
[1754580657381,1.7019,3832.1,3832.0,0.8269]
[1754580658176,1.7019,3832.1,3832.0,1.2956]
[1754580658481,0.2864,3832.1,3832.0,1.4547]
[1754580658676,0.2864,3832.5,3832.0,0.4976]
[1754580658877,1.4155,3832.5,3832.1,0.3042]
[1754580659185,1.7019,3832.4,3832.3,0.89246]
[1754580659480,0.2864,3832.4,3832.3,1.81736]
[1754580660076,0.6237,3832.7,3832.6,1.17463]
[1754580660278,1.4021,3832.7,3832.6,1.81733]
[1754580660485,1.7019,3832.7,3832.6,1.81733]
[1754580662281,37.8868,3834.1,3832.8,1.30424]
[1754580662482,1.7019,3833.2,3833.1,0.70585]
[1754580662682,1.7019,3833.2,3833.1,1.81725]
[1754580664479,1.7019,3833.6,3833.5,0.5216]
[1754580664676,0.20814422,3834.3,3833.7,0.52158]
[1754580664677,0.2864,3833.9,3833.7,0.52158]
[1754580664875,1.7019,3834.6,3834.5,0.52147]
[1754580665478,0.6854,3834.6,3834.4,0.52147]
[1754580665782,1.7019,3834.5,3834.4,0.52147]
[1754580666086,1.0165,3834.4,3834.3,0.52149]
[1754580666279,0.4303,3834.2,3833.7,0.6427]
[1754580666476,1.7019,3834.1,3834.0,1.47863]
[1754580666680,1.7019,3834.1,3834.0,1.81713]
[1754580667183,0.2864,3834.1,3834.0,1.81713]
[1754580667374,1.7019,3834.4,3834.3,1.81709]
[1754580667774,1.7019,3834.4,3834.3,1.2956]
[1754580668576,1.4155,3834.7,3834.6,0.6529]
[1754580668777,1.4155,3834.7,3834.6,1.2956]
[1754580669186,1.7019,3834.7,3834.6,1.2956]
[1754580669384,0.7749,3834.7,3834.6,1.2956]
[1754580669780,0.9718,3834.7,3834.6,1.2956]
[1754580670090,0.2864,3834.7,3834.6,1.4547]
[1754580670280,1.4021,3834.7,3834.6,1.2956]
[1754580670481,1.7019,3834.7,3834.6,1.2956]
[1754580670984,0.52144,3834.8,3833.4,0.5216]
[1754580670985,0.52158,3833.8,3833.4,0.5216]
[1754580671177,1.7019,3833.6,3833.5,0.1842]
[1754580671488,1.7019,3834.4,3834.3,1.2956]
[1754580671785,0.2864,3834.4,3834.3,1.2956]
[1754580672977,1.6958,3834.4,3834.3,1.2956]
[1754580673584,0.2864,3834.4,3834.3,1.2956]
[1754580673784,0.4849,3834.4,3834.3,1.2956]
[1754580674389,1.496,3834.7,3834.6,1.19045]
[1754580674694,1.6947,3834.7,3834.6,1.81005]
[1754580674990,0.2897,3834.2,3834.0,0.282]
[1754580675190,1.3917,3834.2,3834.1,0.52152]
[1754580675389,1.3917,3834.2,3834.1,0.91262]
[1754580675589,1.6947,3834.2,3834.1,1.81012]
[1754580675887,1.6947,3834.2,3834.1,0.52152]
[1754580676088,0.4884,3834.1,3833.6,0.6196]
[1754580676383,1.6947,3833.7,3833.6,0.52158]
[1754580676785,1.6947,3833.7,3833.5,0.52159]
[1754580676984,1.6947,3833.6,3833.5,0.52159]
[1754580677591,1.6947,3833.6,3833.5,0.71619]
[1754580677787,0.772,3833.6,3833.5,1.81019]
[1754580677984,1.6947,3833.6,3833.5,1.81019]
[1754580678478,1.6947,3833.6,3833.5,0.52159]
[1754580678879,1.6947,3833.6,3833.5,0.1946]
[1754580679080,1.6947,3833.6,3833.5,0.8142]
[1754580679482,1.0078,3833.5,3833.1,0.52165]
[1754580679681,1.6947,3833.2,3833.1,0.669]
[1754580679885,1.6947,3833.2,3833.1,0.1946]
[1754580680081,1.0078,3833.1,3833.0,0.52166]
[1754580680283,1.0078,3833.1,3833.0,0.91276]
[1754580680284,1.6947,3833.1,3833.0,0.91276]
[1754580680591,0.4823,3833.1,3833.0,1.81026]
[1754580680787,0.2838,3833.1,3833.0,1.81026]
[1754580681278,0.4823,3833.1,3833.0,1.81026]
[1754580681483,0.772,3833.1,3833.0,1.81026]
[1754580681680,1.6947,3833.1,3833.0,0.1965]
[1754580681883,0.9707,3832.7,3832.6,0.52172]
[1754580682084,0.9707,3832.7,3832.2,0.6196]
[1754580682085,1.0078,3832.6,3832.5,0.52173]
[1754580682290,1.6947,3832.4,3832.3,0.52177]
[1754580682894,0.6869,3832.2,3832.1,1.14138]
[1754580683189,1.6947,3832.2,3832.1,0.85938]
[1754580683385,1.6947,3831.8,3831.7,1.81045]
[1754580683583,1.2737,3831.8,3831.7,1.81045]
[1754580683788,0.772,3831.8,3831.7,1.81045]
[1754580684088,1.2122,3832.1,3832.0,1.81041]
[1754580684283,1.4109,3832.6,3832.4,0.52174]
[1754580684485,1.6947,3832.6,3832.5,0.4766]
[1754580684683,0.2897,3832.3,3832.2,0.52177]
[1754580684886,1.6947,3832.3,3832.2,0.52177]
[1754580685390,1.6947,3832.3,3832.2,0.71637]
[1754580685592,1.6947,3832.3,3832.2,1.53247]
[1754580685780,1.6947,3832.3,3832.1,0.52179]
[1754580685987,1.6947,3832.2,3832.1,0.52179]
[1754580686892,1.1079,3831.6,3831.5,1.81047]
[1754580687091,1.6947,3831.6,3831.5,1.81047]
[1754580687393,1.3816,3831.6,3831.5,1.81047]
[1754580688096,0.9707,3831.6,3831.5,1.81047]
[1754580688288,0.9899,3832.3,3832.2,0.52177]
[1754580688594,0.9899,3832.3,3832.2,1.91757]
[1754580688794,1.2737,3832.3,3832.2,1.91757]
[1754580689091,0.9707,3832.6,3832.5,0.4725]
[1754580689392,1.6947,3832.3,3832.2,0.52177]
[1754580689792,0.6869,3832.1,3832.0,0.5218]
[1754580689989,1.6947,3832.1,3831.6,0.7268]
[1754580690192,0.4882,3831.3,3831.2,1.20432]
[1754580690396,1.6947,3831.3,3831.2,0.0134]
[1754580690694,1.6947,3831.3,3831.2,0.53532]
[1754580690884,1.6947,3831.3,3831.2,0.0134]
[1754580692385,0.52194,3831.1,3830.3,0.282]
[1754580692592,1.6947,3830.2,3830.1,1.91786]
[1754580692884,0.4823,3830.2,3830.1,2.21186]
[1754580693091,1.4109,3830.6,3830.5,1.19101]
[1754580693285,1.4109,3830.6,3830.5,1.91781]
[1754580693796,1.6947,3830.6,3830.5,1.91781]
[1754580693994,1.3917,3830.6,3830.5,1.91781]
[1754580694191,0.303,3830.9,3830.8,0.52197]
[1754580694395,1.6947,3830.9,3830.8,0.99447]
[1754580694595,1.6947,3830.9,3830.8,1.91777]
[1754580694893,1.6947,3830.8,3830.7,0.52197]
[1754580695296,1.6947,3830.8,3830.7,1.72127]
[1754580695499,1.6947,3830.8,3830.7,1.91777]
[1754580695994,0.4823,3830.8,3830.7,2.21177]
[1754580696190,0.2838,3830.8,3830.7,0.52197]
[1754580696389,1.2737,3830.8,3830.7,1.91777]
[1754580696594,0.9707,3830.8,3830.7,2.21177]
[1754580696894,0.772,3830.8,3830.7,2.21177]
[1754580697096,0.2838,3830.8,3830.7,2.21177]
[1754580697997,0.4823,3830.8,3830.7,2.21177]
[1754580698399,1.496,3831.1,3831.0,1.91774]
[1754580698694,0.1985,3831.5,3831.4,0.4785]
[1754580698894,1.1079,3831.8,3831.7,0.52185]
[1754580699095,1.6947,3831.8,3831.7,1.91765]
[1754580699406,1.6947,3831.8,3831.7,0.52185]
[1754580701298,0.4884,3831.5,3830.9,1.30488]
[1754580701499,0.984,3831.0,3830.9,1.19096]
[1754580701704,1.6947,3831.3,3831.2,1.91772]
[1754580702302,0.9707,3831.3,3831.2,2.21172]
[1754580702703,0.9707,3831.3,3831.2,1.91772]
[1754580703007,1.6947,3831.3,3831.2,1.91772]
[1754580703404,1.4062,3831.8,3831.7,1.27665]
[1754580703605,1.4062,3831.8,3831.7,1.91645]
[1754580703606,1.6901,3831.8,3831.7,1.91645]
[1754580704100,1.6901,3831.8,3831.7,1.46815]
[1754580704499,1.6901,3831.8,3831.6,0.52186]
[1754580704703,0.52182,3831.9,3831.6,0.52186]
[1754580704704,1.6901,3831.7,3831.6,0.52186]
[1754580704899,0.1923,3830.7,3830.2,1.30513]
[1754580705208,0.1923,3830.7,3830.6,1.6197]
[1754580705209,1.6901,3830.7,3830.6,1.6197]
[1754580705607,1.6901,3830.7,3830.6,0.522]
[1754580705910,1.6901,3830.7,3830.6,0.7048]
[1754580706111,1.6901,3830.7,3830.6,1.9166]
[1754580706513,1.4062,3830.7,3830.6,1.9166]
[1754580706911,1.6901,3830.7,3830.6,1.9166]
[1754580707217,1.6901,3830.7,3830.6,1.4683]
[1754580707412,1.6901,3830.7,3830.6,1.9166]
[1754580707615,0.4923,3830.7,3830.6,2.2092]
[1754580708710,0.9773,3831.1,3831.0,1.46824]
[1754580708904,0.9773,3831.1,3831.0,1.91654]
[1754580709110,0.7798,3831.1,3831.0,1.91654]
[1754580709312,1.6901,3831.1,3831.0,1.91654]
[1754580710515,1.4062,3831.1,3831.0,1.91654]
[1754580710717,1.4062,3831.1,3830.8,0.2926]
[1754580710718,1.6901,3830.8,3830.7,0.52198]
[1754580710912,1.4062,3830.8,3830.6,0.52199]
[1754580711222,1.6901,3830.7,3830.6,0.52199]
[1754580711513,0.7289,3830.5,3830.4,0.52202]
[1754580711710,1.6901,3830.5,3830.4,0.52202]
[1754580711910,1.6901,3830.5,3830.4,1.91662]
[1754580712416,0.3,3830.9,3830.6,0.52199]
[1754580712611,1.3901,3830.7,3830.6,0.97989]
[1754580712806,1.0128,3830.6,3830.3,0.52203]
[1754580713007,1.0128,3830.6,3829.8,1.30525]
[1754580713008,1.0128,3830.0,3829.7,0.2969]
[1754580713317,1.6901,3829.8,3829.7,0.4797]
[1754580713820,1.6901,3829.8,3829.7,1.3946]
[1754580714018,1.4062,3829.8,3829.7,1.3946]
[1754580714215,1.6901,3830.1,3830.0,1.91668]
[1754580715216,1.6901,3830.1,3830.0,0.97998]
[1754580715415,1.6901,3830.1,3830.0,0.52208]
[1754580716918,0.6773,3830.0,3829.9,0.52208]
[1754580717112,1.6901,3830.0,3829.9,0.52208]
[1754580717515,1.6901,3830.0,3829.9,1.91668]
[1754580717721,0.9773,3830.0,3829.9,2.20928]
[1754580718412,0.4923,3830.0,3829.9,2.20928]
[1754580719422,1.6901,3830.0,3829.9,1.61978]
[1754580719718,1.6901,3830.0,3829.9,0.52208]
[1754580719917,0.7289,3829.9,3829.8,0.5221]
[1754580720124,1.6901,3829.8,3829.7,0.52211]
[1754580720418,0.6773,3829.8,3829.6,0.52212]
[1754580720623,1.6901,3830.0,3829.9,0.52208]
[1754580720819,0.7798,3830.0,3829.9,2.20928]
[1754580721218,1.4062,3830.0,3829.9,1.91668]
[1754580721516,0.71811725,3830.4,3829.9,1.3946]
[1754580721713,1.48701725,3830.4,3830.3,0.52204]
[1754580721910,0.4798,3830.4,3830.3,0.97994]
[1754580722123,2.40821725,3830.4,3830.3,1.46834]
[1754580722418,1.4062,3830.4,3830.3,2.20924]
[1754580722716,0.9212,3830.8,3830.7,2.20918]
[1754580723020,0.4923,3830.8,3830.7,2.20918]
[1754580723615,0.7798,3830.8,3830.7,2.20918]
[1754580724124,0.9773,3831.0,3830.9,1.91656]
[1754580724316,0.71811725,3831.1,3831.0,1.6872]
[1754580724522,0.24183301,3831.4,3831.3,1.1713]
[1754580724819,0.54183301,3831.4,3831.3,2.2091]
[1754580725020,1.73975026,3831.4,3831.3,2.2091]
[1754580725221,1.4062,3831.4,3831.3,1.9165]
[1754580725426,1.6901,3831.4,3831.3,1.9165]
[1754580726514,0.4923,3831.4,3831.3,2.2091]
[1754580726914,0.3,3831.4,3831.3,2.2091]
[1754580727223,1.2087,3831.7,3831.6,1.91646]
[1754580727419,1.4062,3831.7,3831.6,1.91646]
[1754580727819,1.6901,3831.7,3831.6,1.91646]
[1754580728419,1.6901,3831.7,3831.6,0.52186]
[1754580729020,1.4062,3831.7,3831.6,1.91646]
[1754580730021,1.6901,3831.7,3831.6,1.91646]
[1754580730623,0.95995026,3832.4,3832.2,1.46808]
[1754580730819,0.52178,3832.2,3832.0,0.5218]
[1754580731020,1.6901,3832.1,3832.0,0.5218]
[1754580732033,0.6773,3831.5,3831.4,1.3946]
[1754580732229,1.6901,3831.5,3831.4,1.91649]
[1754580734835,0.6633,3832.1,3832.0,0.9909]
[1754580735035,1.4177,3832.1,3832.0,1.4765]
[1754580735234,1.206,3832.1,3832.0,1.8942]
[1754580735533,0.7497,3832.3,3832.2,2.17227]
[1754580735736,1.6993,3832.3,3832.2,1.89417]
[1754580736828,0.959874,3833.3,3832.4,1.30439]
[1754580737023,1.39670502,3833.4,3832.8,0.52169]
[1754580737024,1.18499,3832.9,3832.8,0.52169]
[1754580737224,1.6993,3832.9,3832.8,0.52169]
[1754580737723,0.959874,3833.4,3832.4,1.22295]
[1754580737724,0.1952,3832.5,3832.4,1.22295]
[1754580738031,1.6993,3832.4,3832.3,0.52177]
[1754580738827,1.6993,3832.4,3832.3,0.99087]
[1754580739231,2.659174,3833.1,3833.0,0.70717]
[1754580739534,1.036,3832.9,3832.2,0.2835]
[1754580739834,1.1196,3832.9,3832.8,0.52169]